[Event "*** Titled Tuesday Blitz"]
[Site "Chess.com"]
[Date "2020.05.19"]
[Round "8"]
[White "Mimsychess"]
[Black "AnkitGajwa"]
[Result "1-0"]
[WhiteElo "2285"]
[BlackElo "2426"]
[TimeControl "180+1"]
[EndTime "13:36:40 PDT"]
[Termination "Mimsychess won by resignation"]

1. e4 {[%clk 0:03:00.9]} 1... e5 {[%clk 0:02:57.7]} 2. Nf3 {[%clk 0:02:59.8]}
2... Nc6 {[%clk 0:02:57.7]} 3. Bb5 {[%clk 0:02:59.7]} 3... a6 {[%clk 0:02:57.3]}
4. Bxc6 {[%clk 0:02:57.8]} 4... dxc6 {[%clk 0:02:58.2]} 5. O-O {[%clk 0:02:58]}
5... Bg4 {[%clk 0:02:58.2]} 6. h3 {[%clk 0:02:57.1]} 6... Bxf3 {[%clk
0:02:58.3]} 7. Qxf3 {[%clk 0:02:56.3]} 7... Qd7 {[%clk 0:02:59.2]} 8. d3 {[%clk
0:02:53.6]} 8... O-O-O {[%clk 0:02:59.3]} 9. Nd2 {[%clk 0:02:54.2]} 9... f6
{[%clk 0:02:59.4]} 10. Nc4 {[%clk 0:02:52.3]} 10... g5 {[%clk 0:02:59.5]} 11.
Ne3 {[%clk 0:02:45]} 11... h5 {[%clk 0:02:58.6]} 12. Rd1 {[%clk 0:02:17.7]}
12... g4 {[%clk 0:02:53.4]} 13. hxg4 {[%clk 0:02:15.6]} 13... Nh6 {[%clk
0:02:53.4]} 14. gxh5 {[%clk 0:02:12.2]} 14... Bc5 {[%clk 0:02:52.4]} 15. c3
{[%clk 0:02:08]} 15... Bxe3 {[%clk 0:02:43.8]} 16. Bxe3 {[%clk 0:02:06.8]} 16...
Ng4 {[%clk 0:02:43.9]} 17. h6 {[%clk 0:01:55.8]} 17... Rdg8 {[%clk 0:02:37.6]}
18. d4 {[%clk 0:01:51.9]} 18... Nxe3 {[%clk 0:02:28.9]} 19. Qxe3 {[%clk
0:01:50.2]} 19... Qg4 {[%clk 0:02:21.2]} 20. g3 {[%clk 0:01:40.4]} 20... Qh3
{[%clk 0:02:13.8]} 21. Qf3 {[%clk 0:01:33.6]} 21... Rxh6 {[%clk 0:02:01.3]} 22.
Qf5+ {[%clk 0:01:31.5]} 22... Qxf5 {[%clk 0:02:00.6]} 23. exf5 {[%clk
0:01:32.4]} 23... Rh5 {[%clk 0:01:55]} 24. dxe5 {[%clk 0:01:32]} 24... fxe5
{[%clk 0:01:55.3]} 25. Re1 {[%clk 0:01:31.5]} 25... Rxf5 {[%clk 0:01:55.3]} 26.
Re4 {[%clk 0:01:30.6]} 26... Rd8 {[%clk 0:01:52.8]} 27. Rae1 {[%clk 0:01:29.7]}
27... Rd2 {[%clk 0:01:50.8]} 28. R1e2 {[%clk 0:01:30]} 28... Rxe2 {[%clk
0:01:50.8]} 29. Rxe2 {[%clk 0:01:30.9]} 29... Kd7 {[%clk 0:01:51.2]} 30. Kg2
{[%clk 0:01:21.2]} 30... Kd6 {[%clk 0:01:51.4]} 31. g4 {[%clk 0:01:19.5]} 31...
Rf4 {[%clk 0:01:45.6]} 32. Kg3 {[%clk 0:01:19.1]} 32... c5 {[%clk 0:01:45]} 33.
Rd2+ {[%clk 0:01:06]} 33... Ke6 {[%clk 0:01:42.9]} 34. Rd8 {[%clk 0:01:05.8]}
34... a5 {[%clk 0:01:37.8]} 35. Rc8 {[%clk 0:01:00.2]} 35... Kd6 {[%clk
0:01:34]} 36. g5 {[%clk 0:00:58.2]} 36... a4 {[%clk 0:01:29.8]} 37. a3 {[%clk
0:00:57.1]} 37... b5 {[%clk 0:01:27.1]} 38. Rb8 {[%clk 0:00:49.9]} 38... c6
{[%clk 0:01:25.1]} 39. Rb7 {[%clk 0:00:45.3]} 39... Ke6 {[%clk 0:01:21.2]} 40.
f3 {[%clk 0:00:39.7]} 40... Kf5 {[%clk 0:01:17.8]} 41. Re7 {[%clk 0:00:39.1]}
41... Kxg5 {[%clk 0:01:14.8]} 42. Rxe5+ {[%clk 0:00:38.9]} 42... Rf5 {[%clk
0:01:15]} 43. Rxf5+ {[%clk 0:00:32.2]} 43... Kxf5 {[%clk 0:01:15.3]} 44. f4
{[%clk 0:00:32.8]} 44... c4 {[%clk 0:01:10.9]} 45. Kf3 {[%clk 0:00:32.7]} 45...
c5 {[%clk 0:01:10.1]} 46. Ke3 {[%clk 0:00:32.9]} 46... b4 {[%clk 0:01:06.1]} 47.
Kf3 {[%clk 0:00:33]} 47... Kf6 {[%clk 0:00:56.1]} 48. Ke4 {[%clk 0:00:32.6]}
48... Ke6 {[%clk 0:00:56]} 49. f5+ {[%clk 0:00:31.1]} 49... Kd6 {[%clk
0:00:56.1]} 50. Kf4 {[%clk 0:00:29]} 50... Kd5 {[%clk 0:00:50.3]} 51. Kg5 {[%clk
0:00:25.4]} 51... bxc3 {[%clk 0:00:50.5]} 52. bxc3 {[%clk 0:00:25]} 52... Ke4
{[%clk 0:00:51.1]} 53. f6 {[%clk 0:00:25.9]} 53... Kd3 {[%clk 0:00:51.1]} 54. f7
{[%clk 0:00:26]} 54... Kxc3 {[%clk 0:00:51.5]} 55. f8=Q {[%clk 0:00:26.9]} 55...
Kb2 {[%clk 0:00:51.7]} 56. Qxc5 {[%clk 0:00:26]} 56... c3 {[%clk 0:00:52.2]} 57.
Qb4+ {[%clk 0:00:26.1]} 1-0

[Event "*** Titled Tuesday Blitz"]
[Site "Chess.com"]
[Date "2020.05.19"]
[Round "8"]
[White "ChEsper99"]
[Black "Love_craft"]
[Result "0-1"]
[WhiteElo "2059"]
[BlackElo "2492"]
[TimeControl "180+1"]
[EndTime "13:36:41 PDT"]
[Termination "Love_craft won on time"]

1. e4 {[%clk 0:03:00.9]} 1... g6 {[%clk 0:02:59.7]} 2. d4 {[%clk 0:02:59.3]}
2... Bg7 {[%clk 0:02:58.6]} 3. Nc3 {[%clk 0:02:59]} 3... d6 {[%clk 0:02:58.8]}
4. g3 {[%clk 0:02:52.7]} 4... Nf6 {[%clk 0:02:58.1]} 5. Bg2 {[%clk 0:02:52.5]}
5... Nbd7 {[%clk 0:02:58.4]} 6. Be3 {[%clk 0:02:47.8]} 6... e5 {[%clk
0:02:57.2]} 7. Nge2 {[%clk 0:02:45.1]} 7... h5 {[%clk 0:02:57.2]} 8. h3 {[%clk
0:02:41.2]} 8... c6 {[%clk 0:02:57.6]} 9. a4 {[%clk 0:02:40]} 9... Qe7 {[%clk
0:02:57.3]} 10. O-O {[%clk 0:02:36.6]} 10... h4 {[%clk 0:02:46.3]} 11. g4 {[%clk
0:02:36.1]} 11... Nh7 {[%clk 0:02:46.1]} 12. Qd2 {[%clk 0:02:26.7]} 12... g5
{[%clk 0:02:37.5]} 13. Rad1 {[%clk 0:02:19.2]} 13... Bf6 {[%clk 0:02:26.9]} 14.
dxe5 {[%clk 0:02:14]} 14... dxe5 {[%clk 0:02:27.8]} 15. Qd6 {[%clk 0:02:07.7]}
15... Nhf8 {[%clk 0:02:22.9]} 16. Qxe7+ {[%clk 0:01:51.5]} 16... Bxe7 {[%clk
0:02:23.8]} 17. Rd2 {[%clk 0:01:46.3]} 17... Ne6 {[%clk 0:02:22.8]} 18. Rfd1
{[%clk 0:01:46.1]} 18... Bc5 {[%clk 0:02:20.2]} 19. Bxc5 {[%clk 0:01:39]} 19...
Ndxc5 {[%clk 0:02:21.1]} 20. Bf1 {[%clk 0:01:21.6]} 20... Ke7 {[%clk 0:02:15.7]}
21. Re1 {[%clk 0:01:20.7]} 21... Bd7 {[%clk 0:02:01.8]} 22. b3 {[%clk
0:01:17.2]} 22... Rad8 {[%clk 0:02:00.5]} 23. Nd1 {[%clk 0:01:16.4]} 23... Nxe4
{[%clk 0:01:48.4]} 24. Rd3 {[%clk 0:01:15.7]} 24... N4c5 {[%clk 0:01:39.9]} 25.
Re3 {[%clk 0:01:13.3]} 25... f6 {[%clk 0:01:37]} 26. Rc3 {[%clk 0:01:08.6]}
26... Ne4 {[%clk 0:01:33.2]} 27. Rd3 {[%clk 0:01:05.6]} 27... N6c5 {[%clk
0:01:16]} 28. Re3 {[%clk 0:01:04]} 28... a5 {[%clk 0:01:10.4]} 29. c3 {[%clk
0:00:52.3]} 29... Nd2 {[%clk 0:00:55.5]} 30. f4 {[%clk 0:00:22]} 30... e4 {[%clk
0:00:33.8]} 31. b4 {[%clk 0:00:21.2]} 31... Nd3 {[%clk 0:00:16.3]} 32. Rxd3
{[%clk 0:00:01.4]} 32... exd3 {[%clk 0:00:17.2]} 33. Nd4+ {[%clk 0:00:01.7]}
33... Kd6 {[%clk 0:00:11.8]} 34. Bg2 {[%clk 0:00:01.8]} 34... Rhe8 {[%clk
0:00:10.4]} 35. Kf2 {[%clk 0:00:01.3]} 35... Rxe1 {[%clk 0:00:09.8]} 36. Kxe1
{[%clk 0:00:02.2]} 36... Nc4 {[%clk 0:00:09.4]} 0-1

[Event "*** Titled Tuesday Blitz"]
[Site "Chess.com"]
[Date "2020.05.19"]
[Round "8"]
[White "PavelChernomordik"]
[Black "LostaBet95"]
[Result "1-0"]
[WhiteElo "2412"]
[BlackElo "2520"]
[TimeControl "180+1"]
[EndTime "13:36:43 PDT"]
[Termination "PavelChernomordik won by resignation"]

1. e4 {[%clk 0:03:00.9]} 1... e5 {[%clk 0:02:58.3]} 2. Nf3 {[%clk 0:03:00.3]}
2... Nc6 {[%clk 0:02:58.5]} 3. Bb5 {[%clk 0:03:00.6]} 3... Nf6 {[%clk
0:02:58.8]} 4. Qe2 {[%clk 0:02:59.8]} 4... a6 {[%clk 0:02:49.3]} 5. Ba4 {[%clk
0:02:58.6]} 5... b5 {[%clk 0:02:49]} 6. Bb3 {[%clk 0:02:58.6]} 6... Bc5 {[%clk
0:02:49.9]} 7. a4 {[%clk 0:02:58]} 7... b4 {[%clk 0:02:47.1]} 8. Bxf7+ {[%clk
0:02:56.4]} 8... Kxf7 {[%clk 0:02:44.7]} 9. Qc4+ {[%clk 0:02:56.1]} 9... d5
{[%clk 0:02:45.2]} 10. Qxc5 {[%clk 0:02:54.7]} 10... Qd6 {[%clk 0:02:41.4]} 11.
Qxd6 {[%clk 0:02:50.4]} 11... cxd6 {[%clk 0:02:42.3]} 12. exd5 {[%clk
0:02:50.1]} 12... Nxd5 {[%clk 0:02:43.2]} 13. d3 {[%clk 0:02:49.3]} 13... Bg4
{[%clk 0:02:41.1]} 14. Ng5+ {[%clk 0:02:46.3]} 14... Kg6 {[%clk 0:02:39.6]} 15.
Ne4 {[%clk 0:02:44.8]} 15... Nd4 {[%clk 0:02:35.6]} 16. Kd2 {[%clk 0:02:23.3]}
16... Rac8 {[%clk 0:02:30]} 17. Nbc3 {[%clk 0:02:21.1]} 17... bxc3+ {[%clk
0:02:29.7]} 18. bxc3 {[%clk 0:02:20.3]} 18... Nc6 {[%clk 0:02:21.3]} 19. c4
{[%clk 0:02:19.4]} 19... Nf6 {[%clk 0:02:18]} 20. Nxd6 {[%clk 0:02:17]} 20...
Rcd8 {[%clk 0:02:14.9]} 21. Ba3 {[%clk 0:02:13.9]} 21... Rd7 {[%clk 0:02:14.6]}
22. f3 {[%clk 0:02:11.7]} 22... Be6 {[%clk 0:02:14.3]} 23. Kc3 {[%clk
0:02:08.4]} 23... Rhd8 {[%clk 0:02:14]} 24. Ne4 {[%clk 0:02:07.6]} 24... Nxe4+
{[%clk 0:02:12.7]} 25. fxe4 {[%clk 0:02:06.5]} 25... Nd4 {[%clk 0:02:13]} 26.
Rhf1 {[%clk 0:01:59.1]} 26... Rb7 {[%clk 0:02:08.9]} 27. Rab1 {[%clk 0:01:57.6]}
27... Rxb1 {[%clk 0:02:02.1]} 28. Rxb1 {[%clk 0:01:56.3]} 28... Ne2+ {[%clk
0:02:00.6]} 29. Kd2 {[%clk 0:01:55.1]} 29... Nf4 {[%clk 0:02:00.5]} 30. g3
{[%clk 0:01:53.3]} 30... Nh3 {[%clk 0:02:00.7]} 31. Rb6 {[%clk 0:01:49.2]} 31...
Kf7 {[%clk 0:02:00.9]} 32. Rxa6 {[%clk 0:01:39.9]} 32... Bxc4 {[%clk 0:01:59.4]}
33. Ra7+ {[%clk 0:01:39.7]} 33... Kg6 {[%clk 0:01:59.3]} 34. Bb2 {[%clk
0:01:38]} 34... Ng5 {[%clk 0:01:52]} 35. Ke3 {[%clk 0:01:36.2]} 35... Ba2 {[%clk
0:01:44.6]} 36. Bxe5 {[%clk 0:01:34.2]} 36... Bb1 {[%clk 0:01:40.8]} 37. Rxg7+
{[%clk 0:01:31.7]} 37... Kh5 {[%clk 0:01:40]} 38. h4 {[%clk 0:01:30]} 38... Ne6
{[%clk 0:01:39]} 39. Rxh7+ {[%clk 0:01:19.6]} 39... Kg4 {[%clk 0:01:39.5]} 40.
Re7 {[%clk 0:01:16.6]} 40... Nc5 {[%clk 0:01:37.3]} 41. Rc7 {[%clk 0:01:10.5]}
41... Nxa4 {[%clk 0:01:21.7]} 42. Bd4 {[%clk 0:01:10]} 42... Rb8 {[%clk
0:01:14]} 43. Rc4 {[%clk 0:01:05.6]} 43... Nb6 {[%clk 0:01:12]} 44. Rc6 {[%clk
0:01:00.9]} 44... Na4 {[%clk 0:01:09]} 45. Rg6+ {[%clk 0:00:59.6]} 45... Kh3
{[%clk 0:01:08.9]} 46. Kd2 {[%clk 0:00:56.5]} 46... Rc8 {[%clk 0:01:02.1]} 47.
c4 {[%clk 0:00:54]} 47... Nc5 {[%clk 0:01:00.4]} 48. Bxc5 {[%clk 0:00:51.6]}
48... Rxc5 {[%clk 0:01:01.3]} 49. Rg5 {[%clk 0:00:51.7]} 49... Rc8 {[%clk
0:00:58]} 50. h5 {[%clk 0:00:51.6]} 50... Rd8 {[%clk 0:00:57.3]} 51. Rd5 {[%clk
0:00:50.3]} 51... Rh8 {[%clk 0:00:56.1]} 52. c5 {[%clk 0:00:49.3]} 52... Kxg3
{[%clk 0:00:54.9]} 53. c6 {[%clk 0:00:48.5]} 53... Rc8 {[%clk 0:00:53.3]} 54.
Rc5 {[%clk 0:00:46.3]} 54... Kf4 {[%clk 0:00:53.3]} 55. h6 {[%clk 0:00:45.2]}
55... Ba2 {[%clk 0:00:38.7]} 56. h7 {[%clk 0:00:40.8]} 56... Be6 {[%clk
0:00:38.7]} 57. Rh5 {[%clk 0:00:35.9]} 57... Rh8 {[%clk 0:00:36.5]} 58. Kc3
{[%clk 0:00:35.9]} 58... Bf7 {[%clk 0:00:35.6]} 59. Rf5+ {[%clk 0:00:34.8]}
59... Ke3 {[%clk 0:00:36]} 60. Rxf7 {[%clk 0:00:35.7]} 60... Rxh7 {[%clk
0:00:36.9]} 1-0

[Event "*** Titled Tuesday Blitz"]
[Site "Chess.com"]
[Date "2020.05.19"]
[Round "8"]
[White "vanyakuba"]
[Black "Nayemhaque22"]
[Result "1-0"]
[WhiteElo "2446"]
[BlackElo "2190"]
[TimeControl "180+1"]
[EndTime "13:36:43 PDT"]
[Termination "vanyakuba won by resignation"]

1. e4 {[%clk 0:03:00.9]} 1... c5 {[%clk 0:02:59.9]} 2. c3 {[%clk 0:03:00.7]}
2... Nc6 {[%clk 0:02:56]} 3. d4 {[%clk 0:03:00.5]} 3... cxd4 {[%clk 0:02:55.6]}
4. cxd4 {[%clk 0:03:01.4]} 4... g6 {[%clk 0:02:51.2]} 5. d5 {[%clk 0:02:59.4]}
5... Nb8 {[%clk 0:02:51.2]} 6. Nc3 {[%clk 0:02:58.3]} 6... Bg7 {[%clk
0:02:50.2]} 7. Be3 {[%clk 0:02:58.1]} 7... d6 {[%clk 0:02:50]} 8. Qd2 {[%clk
0:02:58.2]} 8... Nf6 {[%clk 0:02:49.4]} 9. Bh6 {[%clk 0:02:47.7]} 9... O-O
{[%clk 0:02:42.5]} 10. Bxg7 {[%clk 0:02:43.5]} 10... Kxg7 {[%clk 0:02:42.4]} 11.
f4 {[%clk 0:02:35.8]} 11... Nbd7 {[%clk 0:02:40.4]} 12. Nf3 {[%clk 0:02:31.2]}
12... Nc5 {[%clk 0:02:39.9]} 13. Qd4 {[%clk 0:02:31]} 13... Kg8 {[%clk
0:02:30.7]} 14. e5 {[%clk 0:02:28.7]} 14... Nfd7 {[%clk 0:02:19.5]} 15. h4
{[%clk 0:02:11.7]} 15... Qa5 {[%clk 0:02:01]} 16. b4 {[%clk 0:02:05.3]} 16...
dxe5 {[%clk 0:01:37.1]} 17. fxe5 {[%clk 0:02:02.7]} 17... Qa3 {[%clk 0:01:34.3]}
18. bxc5 {[%clk 0:02:00.9]} 18... Nxc5 {[%clk 0:01:34]} 19. Nb5 {[%clk
0:01:35.2]} 19... Qa5+ {[%clk 0:01:28.3]} 20. Qd2 {[%clk 0:01:35.1]} 20... Qb6
{[%clk 0:01:25.1]} 21. h5 {[%clk 0:01:29.3]} 21... a6 {[%clk 0:01:24.3]} 22.
hxg6 {[%clk 0:01:28.2]} 22... fxg6 {[%clk 0:01:22.8]} 23. Nc3 {[%clk 0:01:19.3]}
23... Bf5 {[%clk 0:01:17.1]} 24. Bc4 {[%clk 0:01:10.6]} 24... Rac8 {[%clk
0:01:13.7]} 25. d6+ {[%clk 0:00:57.9]} 25... e6 {[%clk 0:01:02.5]} 26. Qd4
{[%clk 0:00:43]} 26... Qb2 {[%clk 0:00:57.3]} 27. Rd1 {[%clk 0:00:39.2]} 27...
b5 {[%clk 0:00:54.7]} 28. Nd5 {[%clk 0:00:18.3]} 28... Qxg2 {[%clk 0:00:38.8]}
29. Ne7+ {[%clk 0:00:16.1]} 29... Kg7 {[%clk 0:00:38.5]} 30. Qh4 {[%clk
0:00:07.4]} 30... h5 {[%clk 0:00:27.3]} 31. Be2 {[%clk 0:00:06.1]} 31... Rcd8
{[%clk 0:00:23]} 32. Rg1 {[%clk 0:00:06]} 32... Nd3+ {[%clk 0:00:20]} 33. Rxd3
{[%clk 0:00:05.2]} 33... Qh1 {[%clk 0:00:18.5]} 34. Rxh1 {[%clk 0:00:04.6]}
34... Bxd3 {[%clk 0:00:17.1]} 35. Rg1 {[%clk 0:00:04.3]} 35... Rxf3 {[%clk
0:00:14.7]} 36. Bxf3 {[%clk 0:00:04.2]} 36... Rf8 {[%clk 0:00:14.2]} 37. Be2
{[%clk 0:00:03.4]} 37... Be4 {[%clk 0:00:13.9]} 38. Bxh5 {[%clk 0:00:03.5]} 1-0

[Event "*** Titled Tuesday Blitz"]
[Site "Chess.com"]
[Date "2020.05.19"]
[Round "8"]
[White "nihalsarin"]
[Black "Twitch_ElhamBlitz05"]
[Result "1-0"]
[WhiteElo "3021"]
[BlackElo "2773"]
[TimeControl "180+1"]
[EndTime "13:36:44 PDT"]
[Termination "nihalsarin won by checkmate"]

1. g3 {[%clk 0:03:00.9]} 1... Nf6 {[%clk 0:02:58.9]} 2. Bg2 {[%clk 0:02:59]}
2... g6 {[%clk 0:02:59.7]} 3. b3 {[%clk 0:02:56.7]} 3... c6 {[%clk 0:03:00.2]}
4. Bb2 {[%clk 0:02:57.6]} 4... Bg7 {[%clk 0:03:00.5]} 5. e3 {[%clk 0:02:53.5]}
5... O-O {[%clk 0:03:00.8]} 6. Ne2 {[%clk 0:02:54.1]} 6... d5 {[%clk 0:03:01.2]}
7. d3 {[%clk 0:02:54.6]} 7... Bf5 {[%clk 0:02:59.8]} 8. Nd2 {[%clk 0:02:54.9]}
8... Nbd7 {[%clk 0:02:59.8]} 9. h3 {[%clk 0:02:55.5]} 9... e5 {[%clk 0:02:59.2]}
10. g4 {[%clk 0:02:55.7]} 10... Be6 {[%clk 0:02:59.2]} 11. Ng3 {[%clk
0:02:55.7]} 11... h6 {[%clk 0:02:55.7]} 12. O-O {[%clk 0:02:49]} 12... Re8
{[%clk 0:02:55.8]} 13. e4 {[%clk 0:02:45]} 13... d4 {[%clk 0:02:48.3]} 14. Nf3
{[%clk 0:02:31.2]} 14... Nh7 {[%clk 0:02:41.8]} 15. Bc1 {[%clk 0:02:30]} 15...
c5 {[%clk 0:02:39]} 16. Kh1 {[%clk 0:02:25.8]} 16... b5 {[%clk 0:02:33.8]} 17.
Nf5 {[%clk 0:02:25.9]} 17... gxf5 {[%clk 0:01:40.3]} 18. gxf5 {[%clk 0:02:26.8]}
18... Ndf8 {[%clk 0:01:35.6]} 19. fxe6 {[%clk 0:02:25.9]} 19... Nxe6 {[%clk
0:01:36.5]} 20. a4 {[%clk 0:02:22.1]} 20... c4 {[%clk 0:01:08.4]} 21. axb5
{[%clk 0:02:11.1]} 21... cxb3 {[%clk 0:01:06.6]} 22. cxb3 {[%clk 0:02:09.9]}
22... Qf6 {[%clk 0:01:04.2]} 23. Ra6 {[%clk 0:02:00.5]} 23... Reb8 {[%clk
0:00:50.5]} 24. b4 {[%clk 0:01:58.5]} 24... Rxb5 {[%clk 0:00:49.8]} 25. Qa4
{[%clk 0:01:59.1]} 25... Rab8 {[%clk 0:00:48.7]} 26. Bd2 {[%clk 0:01:57.3]}
26... Bf8 {[%clk 0:00:38.1]} 27. Rg1 {[%clk 0:01:45.6]} 27... Kh8 {[%clk
0:00:35.3]} 28. Ra5 {[%clk 0:01:27.5]} 28... a6 {[%clk 0:00:19.5]} 29. Rxb5
{[%clk 0:01:19.4]} 29... axb5 {[%clk 0:00:18.6]} 30. Qa7 {[%clk 0:01:20.1]}
30... Re8 {[%clk 0:00:17.8]} 31. Qd7 {[%clk 0:01:18.9]} 31... Re7 {[%clk
0:00:16.7]} 32. Qxb5 {[%clk 0:01:18.5]} 32... Nf4 {[%clk 0:00:17.3]} 33. Bxf4
{[%clk 0:01:08.5]} 33... Qxf4 {[%clk 0:00:18.2]} 34. Qb8 {[%clk 0:01:05.3]}
34... Qf6 {[%clk 0:00:16.7]} 35. b5 {[%clk 0:01:05]} 35... Re6 {[%clk
0:00:16.7]} 36. Rb1 {[%clk 0:00:58]} 36... Kg7 {[%clk 0:00:12]} 37. b6 {[%clk
0:00:57.8]} 37... Bd6 {[%clk 0:00:12.3]} 38. Qc8 {[%clk 0:00:52.7]} 38... Ng5
{[%clk 0:00:06.6]} 39. Nh4 {[%clk 0:00:37.9]} 39... Nxe4 {[%clk 0:00:04.5]} 40.
Bxe4 {[%clk 0:00:33.7]} 40... Qxh4 {[%clk 0:00:04.6]} 41. Rg1+ {[%clk 0:00:34]}
41... Kf6 {[%clk 0:00:05.2]} 42. Qd8+ {[%clk 0:00:34.4]} 42... Re7 {[%clk
0:00:02.4]} 43. Qxd6+ {[%clk 0:00:34.3]} 43... Re6 {[%clk 0:00:02.3]} 44. Qd8+
{[%clk 0:00:34.5]} 44... Re7 {[%clk 0:00:02.7]} 45. Qh8+ {[%clk 0:00:31.4]}
45... Ke6 {[%clk 0:00:03.2]} 46. Qc8+ {[%clk 0:00:32.3]} 46... Kf6 {[%clk
0:00:03.6]} 47. Qf5# {[%clk 0:00:31.5]} 1-0

[Event "*** Titled Tuesday Blitz"]
[Site "Chess.com"]
[Date "2020.05.19"]
[Round "8"]
[White "Charlottemillard17"]
[Black "spela91"]
[Result "0-1"]
[WhiteElo "1418"]
[BlackElo "2032"]
[TimeControl "180+1"]
[EndTime "13:36:44 PDT"]
[Termination "spela91 won on time"]

1. e4 {[%clk 0:03:00.9]} 1... c5 {[%clk 0:02:59.4]} 2. Nf3 {[%clk 0:02:59.4]}
2... Nc6 {[%clk 0:02:58.4]} 3. d4 {[%clk 0:02:59]} 3... cxd4 {[%clk 0:02:59.3]}
4. Nxd4 {[%clk 0:02:59.1]} 4... Qc7 {[%clk 0:02:59.6]} 5. Nc3 {[%clk 0:02:58.2]}
5... e6 {[%clk 0:02:59.9]} 6. Nb3 {[%clk 0:02:57.3]} 6... Nf6 {[%clk 0:02:57.9]}
7. f4 {[%clk 0:02:56.3]} 7... d6 {[%clk 0:02:40]} 8. Be2 {[%clk 0:02:49.3]} 8...
a6 {[%clk 0:02:39.7]} 9. g4 {[%clk 0:02:48.3]} 9... Be7 {[%clk 0:02:36.1]} 10.
g5 {[%clk 0:02:39]} 10... Nd7 {[%clk 0:02:34.3]} 11. Be3 {[%clk 0:02:33.1]}
11... b5 {[%clk 0:02:08.4]} 12. Qd2 {[%clk 0:02:13.1]} 12... h6 {[%clk
0:02:05.6]} 13. h4 {[%clk 0:02:05.2]} 13... hxg5 {[%clk 0:02:03.8]} 14. fxg5
{[%clk 0:02:03.1]} 14... Nde5 {[%clk 0:01:57.6]} 15. O-O-O {[%clk 0:01:54.8]}
15... Bd7 {[%clk 0:01:52.1]} 16. Bf4 {[%clk 0:01:37.4]} 16... O-O-O {[%clk
0:01:48.9]} 17. Qe3 {[%clk 0:01:18.3]} 17... Nb4 {[%clk 0:01:22.3]} 18. a3
{[%clk 0:00:59.2]} 18... Nbc6 {[%clk 0:01:21.6]} 19. Na2 {[%clk 0:00:53.6]}
19... Kb7 {[%clk 0:01:11.6]} 20. Bg3 {[%clk 0:00:21.1]} 20... Qb6 {[%clk
0:00:56.6]} 21. Qc3 {[%clk 0:00:18.2]} 21... Rc8 {[%clk 0:00:49.7]} 22. Qd2
{[%clk 0:00:13]} 22... Rhd8 {[%clk 0:00:17.8]} 23. Bd3 {[%clk 0:00:12.3]} 23...
Be8 {[%clk 0:00:17.1]} 24. Bf2 {[%clk 0:00:12.2]} 24... Qc7 {[%clk 0:00:16.3]}
25. Rhg1 {[%clk 0:00:08.1]} 25... g6 {[%clk 0:00:15.1]} 26. Rh1 {[%clk
0:00:06.6]} 26... Nc4 {[%clk 0:00:13.1]} 27. Bxc4 {[%clk 0:00:05.9]} 27... bxc4
{[%clk 0:00:13.1]} 28. Nd4 {[%clk 0:00:05.3]} 28... Ne5 {[%clk 0:00:12.2]} 29.
Qb4+ {[%clk 0:00:04.7]} 29... Ka8 {[%clk 0:00:10.8]} 30. Ne2 {[%clk 0:00:03.4]}
30... d5 {[%clk 0:00:08.6]} 31. Qc3 {[%clk 0:00:02]} 31... Rb8 {[%clk
0:00:07.4]} 32. Qd4 {[%clk 0:00:01.8]} 32... Bd6 {[%clk 0:00:07]} 33. Nb4 {[%clk
0:00:01.3]} 33... Nc6 {[%clk 0:00:06.3]} 34. Nxc6 {[%clk 0:00:01.1]} 34... Bxc6
{[%clk 0:00:05.8]} 0-1

[Event "*** Titled Tuesday Blitz"]
[Site "Chess.com"]
[Date "2020.05.19"]
[Round "8"]
[White "Thee-Chessboy"]
[Black "DenisQ"]
[Result "0-1"]
[WhiteElo "2404"]
[BlackElo "2556"]
[TimeControl "180+1"]
[EndTime "13:36:45 PDT"]
[Termination "DenisQ won by resignation"]

1. d4 {[%clk 0:03:00.9]} 1... Nf6 {[%clk 0:02:59.2]} 2. c4 {[%clk 0:03:01]} 2...
g6 {[%clk 0:02:59]} 3. Nf3 {[%clk 0:03:01.2]} 3... Bg7 {[%clk 0:02:58.4]} 4. g3
{[%clk 0:03:01.6]} 4... O-O {[%clk 0:02:57.9]} 5. Bg2 {[%clk 0:03:02.2]} 5... c6
{[%clk 0:02:58.1]} 6. O-O {[%clk 0:03:02.7]} 6... d5 {[%clk 0:02:57.8]} 7. cxd5
{[%clk 0:03:02.8]} 7... cxd5 {[%clk 0:02:57.7]} 8. Ne5 {[%clk 0:03:03.2]} 8...
Nfd7 {[%clk 0:02:49.1]} 9. Nxd7 {[%clk 0:02:56.7]} 9... Nxd7 {[%clk 0:02:36.2]}
10. Nc3 {[%clk 0:02:52.7]} 10... Nb6 {[%clk 0:02:35.3]} 11. a4 {[%clk
0:02:51.2]} 11... a5 {[%clk 0:02:33]} 12. Bf4 {[%clk 0:02:49.1]} 12... e6 {[%clk
0:02:28.7]} 13. Nb5 {[%clk 0:02:47.2]} 13... Qd7 {[%clk 0:02:01.9]} 14. Rc1
{[%clk 0:02:37.9]} 14... Ra6 {[%clk 0:01:46.6]} 15. Rc7 {[%clk 0:02:26.6]} 15...
Qd8 {[%clk 0:01:44.8]} 16. Qc2 {[%clk 0:02:03.2]} 16... Na8 {[%clk 0:01:41.3]}
17. Rc3 {[%clk 0:01:53.5]} 17... Bd7 {[%clk 0:01:39.8]} 18. Rc1 {[%clk
0:01:45.2]} 18... Rc6 {[%clk 0:01:23.5]} 19. e3 {[%clk 0:01:35.2]} 19... Qb6
{[%clk 0:01:06]} 20. Rxc6 {[%clk 0:01:22.9]} 20... bxc6 {[%clk 0:01:04.4]} 21.
Nc3 {[%clk 0:01:18.2]} 21... c5 {[%clk 0:01:01.7]} 22. dxc5 {[%clk 0:01:17.6]}
22... Qxc5 {[%clk 0:01:02.6]} 23. Nxd5 {[%clk 0:01:17.9]} 23... Qxc2 {[%clk
0:00:56.1]} 24. Ne7+ {[%clk 0:01:17.4]} 24... Kh8 {[%clk 0:00:56.3]} 25. Rxc2
{[%clk 0:01:17.6]} 25... Bxa4 {[%clk 0:00:56.2]} 26. Rc4 {[%clk 0:01:06.7]}
26... Bb3 {[%clk 0:00:54.2]} 27. Rc5 {[%clk 0:01:00.2]} 27... a4 {[%clk
0:00:46.4]} 28. Be5 {[%clk 0:00:46.4]} 28... Bxe5 {[%clk 0:00:45.7]} 29. Rxe5
{[%clk 0:00:47]} 29... Nb6 {[%clk 0:00:46.3]} 30. Bf1 {[%clk 0:00:38.8]} 30...
Rd8 {[%clk 0:00:42.6]} 31. Kg2 {[%clk 0:00:24.1]} 31... Rd7 {[%clk 0:00:28.8]}
32. Rb5 {[%clk 0:00:21.9]} 32... Nc4 {[%clk 0:00:19.8]} 33. Rb8+ {[%clk
0:00:19.3]} 33... Kg7 {[%clk 0:00:19.3]} 34. Bxc4 {[%clk 0:00:19.3]} 34... Bxc4
{[%clk 0:00:19.5]} 35. Nc8 {[%clk 0:00:19.5]} 35... Rd8 {[%clk 0:00:18.8]} 36.
e4 {[%clk 0:00:06.2]} 36... Ba6 {[%clk 0:00:18.2]} 37. Rb6 {[%clk 0:00:05]}
37... Bxc8 {[%clk 0:00:17.5]} 38. Rb8 {[%clk 0:00:05.1]} 38... Kf8 {[%clk
0:00:16.6]} 0-1